{"text_format":"2","workbook":"xlsx","n_sheets":1,"sheets":["Sayfa1"],"not_rendered":{"charts":0,"images":0,"macros":0,"external_links":0,"defined_names":0,"comments":0,"pivot_tables":0},"unopened":[],"bounds":{"document_bytes":16777216,"sheet_cells":100000,"run_cost":"one","rows_first":2000,"rows_last":500,"rows_between":2000,"halvings":0,"cell_chars":16384,"cell_head_chars":4096},"cells_cut":0,"cells_raw":0,"read":"whole","date_system":"1900"}

{"sheet":"Sayfa1","index":0,"n_rows":39,"n_cols":11,"rows_kept":39,"cut":false,"hidden":false,"merged":[[1,0,1,10],[2,0,2,10],[3,0,3,10],[5,0,6,0],[5,1,6,1],[5,2,6,2],[5,3,6,3],[5,5,6,5],[5,6,6,6],[5,7,6,7],[5,10,6,10],[5,4,6,4],[5,8,6,8],[5,9,6,9]]}
[]
["2020-2021 EĞİTİM ÖĞRETİM DÖNEMİ"]
["BEDEN EĞİTİMİ VE SPOR DERSİ İÇİN UZAKTAN EĞİTİM SÜRECİ"]
["CANLI DERSLER İÇİN PERFORMANS DEĞERLENDİRME ÖLÇEĞİ"]
[]
["Sıra","No","      ADI- SOYADI","Canlı dersleri düzenli olarak devam etmesi ve derslere hep vaktinde girmesi (10 puan)","Canlı derslere düzenli olarak katılması      (10 puan) ","Her bir canlı derste birden sorulan sorulara cevap vermesi (20 puan)","EBA ve diğer platformlar üzerinden gönderilen ödevleri yapması (20 puan)"," Her bir canlı derste birden fazla görüş                             önererek ve sorular sorarak derse aktif olarak katılması (20 puan)","Canlı ders sırasında ders kitabı \n ve diğer ders araç gereçlerini hazır bulundurması (10 puan)","Canlı ders sırasında arkadaşlarına ve öğretmenlerine saygılı davranması \n(10 puan)","TOPLAM PUAN (100)"]
[]
[1,{"$nulls":9},{"$f":"SUM(D8:J8)","v":0}]
[2,{"$nulls":9},{"$f":"SUM(D9:J9)","v":0}]
[3,{"$nulls":9},0]
[4,{"$nulls":9},0]
[5,{"$nulls":9},0]
[6,{"$nulls":9},0]
[7,{"$nulls":9},0]
[8,{"$nulls":9},0]
[9,{"$nulls":9},0]
[10,{"$nulls":9},0]
[11,{"$nulls":9},0]
[12,{"$nulls":9},0]
[13,{"$nulls":9},0]
[14,{"$nulls":9},0]
[15,{"$nulls":9},0]
[16,{"$nulls":9},0]
[17,{"$nulls":9},0]
[18,{"$nulls":9},0]
[19,{"$nulls":9},0]
[20,{"$nulls":9},0]
[21,{"$nulls":9},0]
[22,{"$nulls":9},0]
[23,{"$nulls":9},0]
[24,{"$nulls":9},0]
[25,{"$nulls":9},0]
[26,{"$nulls":9},0]
[27,{"$nulls":9},0]
[28,{"$nulls":9},0]
[]
[]
[{"$nulls":8},"  Kerem BALYEMEZ"]
[{"$nulls":8},"www.bednegitimi.gen.tr"]